Workbook

Sheet bdt
G1: Black, Derman & Toy
A3: Given: | C3: cc Spot | D3: ln | P3: 90-day forward | Q3: 90-day forward
A4: Node | B4: Maturity | C4: Yield | D4: Volatility | E4: df | O4: df | P4: df | Q4: Libor
A5: 1 | B5: 0.25 | C5: 0.0217 | O5: =EXP(-C5*B5) -> 0.9945896887 | P5: =O5 -> 0.9945896887 | Q5: =4*(1/P5-1) -> 0.02175896784
A6: 2 | B6: 0.5 | C6: 0.023177 | D6: 0.1877 | E6: =EXP(-B6*C6) -> 0.988478388 | F6: We take the market parameters as sacrosanct--we'll build a tree to match them. | O6: =E6 -> 0.988478388 | P6: =O6/O5 -> 0.9938554554 | Q6: =4*(1/P6-1) -> 0.0247301338
A7: 3 | B7: 0.75 | C7: 0.02442 | D7: 0.1866 | F7: Volatilities are for the annualized discount rates to this node. | O7: =EXP(-B7*C7) -> 0.9818517004 | P7: =O7/O6 -> 0.9932960723 | Q7: 0.02699669484
A8: 4 | B8: 1 | C8: 0.02555 | D8: 0.2777 | E8: =EXP(-B8*C8) -> 0.9747736391 | F8: It's important to know what these volatilities mean. | O8: =E8 -> 0.9747736391 | P8: 0.9927911096 | Q8: 0.02904494339
A9: 5 | B9: 1.25 | C9: 0.026586 | D9: 0.3019 | F9: In this version, we use the term structure of future short rate volatilities. | O9: =EXP(-B9*C9) -> 0.967313633 | P9: 0.992346935 | Q9: 0.03084834448
A10: 6 | B10: 1.5 | C10: 0.027546 | D10: 0.2976 | E10: =EXP(-B10*C10) -> 0.9595229933 | F10: These come from caplet prices. (In fact, dealers often quote caplet prices in terms of their implied | O10: =EXP(-B10*C10) -> 0.9595229933 | P10: 0.9919461078 | Q10: 0.0324771362
A11: 7 | B11: 1.75 | C11: 0.0276 | D11: 0.33 | F11: volatilities from Black's Model.) | O11: =EXP(-B11*C11) -> 0.9528478898 | P11: 0.9930433106 | Q11: 0.02802169593
A12: 8 | B12: 2 | C12: 0.0276 | D12: 0.44 | E12: =EXP(-B12*C12) -> 0.9462958699 | O12: =EXP(-B12*C12) -> 0.9462958699 | P12: 0.9931237503 | Q12: 0.02769543938
A13: 9 | B13: 2.25 | C13: 0.0274 | D13: 0.49 | O13: =EXP(-B13*C13) -> 0.9402119034 | P13: 0.9935707566 | Q13: 0.02588338418
A14: 10 | B14: 2.5 | C14: 0.0271 | D14: 0.55 | E14: =EXP(-B14*C14) -> 0.9344940679 | O14: =EXP(-B14*C14) -> 0.9344940679 | P14: 0.9939185672 | Q14: 0.02447457155
A15: 11 | B15: 2.75 | C15: 0.0268 | D15: 0.62 | G15: Compute swap rate: | I15: 50 * c * | J15: =SUM(E6:E16) -> 5.727142978 | K15: + 100 * | L15: =E16 -> 0.92357802 | M15: = 100 | O15: 0.9289503371 | P15: 0.9940676662 | Q15: 0.02387094564
A16: 12 | B16: 3 | C16: 0.0265 | D16: 0.7 | E16: =EXP(-B16*C16) -> 0.92357802 | M16: =100-100*E16 -> 7.642198003 | O16: 0.92357802 | P16: 0.9942167875 | Q16: 0.02326741026
L17: c = | M17: =M16/(50*J15) -> 0.02668764524
B19: Assume: The short rate (I.e., the yield on a one-year T-Bill) follows a binomial process.
C20: In the spirit of the binomial model, the difference between the nodes in a time period is determined by the standard deviation:
C21: Use continuous compounding/discounting in the tree.
B23: So, the price of a 3-mo zero is: | E23: =100*EXP(-B5*C5) -> 99.45896887
L24: ru
B25: Implying the tree: (What are the 2 possible short rates in 1 quarter?) | G25: That is, our tree will look like this: | J25: =C5 -> 0.0217 | L25: where ru and rd are consistent with the 180-day spot rate and the vol on the caplet struck in 90 days.
L26: rd | M26: Of course this also means that they're consistent with the 90-day forward rate for the tenor starting in 90 days.
C27: Price of the 6-mo zero: | E27: =100*EXP(-B6*C6) -> 98.8478388
C29: What we know:
D30: From sigma(2), the ratio (of the logs) of the rates. | H30: So if we find one of the rates, we can construct all of the others.
H31: We'll find the lowest rate at each term in the tree and use sigma to fill in all the higher rates at that time.
D32: Let's use solver to solve for rd: | K32: Targets | L32: Criterion: | M32: =ABS(K33-I33) -> 7.347011888e-12
E33: ru | F33: =F34*EXP(2*D6*SQRT(B5)) -> 0.02704572193 | H33: Model price: | I33: =B41 -> 98.8478388 | K33: =E27 -> 98.8478388 | M33: Minimize the criterion cell by changing the lowest rate on the tree
E34: rd | F34: 0.02241720711 | H34: (from tree)
B36: Price Tree for 6 - Month Zero | F36: This solves for the second time period of the short-rate tree, using information in today's yield curve.
D37: 100 | F37: The 6-mo spot rate is 2.318%, and in 3 months there is a 50% probability that the 3-month rate will be 2.696% and 50% probability that it will be 2.235%.
C39: =100/(1+B5*F33) -> 99.32839794 | F39: This allows us to solve for the price of the note one year from now in the up-state
B41: =0.5*(C39+C43)*EXP(-C5*B5) -> 98.8478388 | D41: 100
C43: =100/(1+B5*F34) -> 99.44269314 | F43: This allows us to solve for the price of the note one year from now in the down-state
D45: 100 | F45: Note: All of these trees are in the "Risk-Neutral World." There is not enough information to separately identify the
G46: nodes and the probabilities, so we set the up and down probabilities equal to 50%.
B48: To solve for the 3rd time in the tree, we also need to use the restriction that the tree recombines. (This is consistent with the assumption that the volatility at this point does not depend on which node we're in.)
C50: Price of the 9-mo zero: | E50: =100*EXP(-B7*C7) -> 98.18517004 | K50: Target | L50: Criterion
H51: p: | I51: =EXP(2*D7*SQRT(B5)) -> 1.205145131
H52: Pricing Eqn: | I52: =B65 -> 98.18517004 | K52: =E50 -> 98.18517004 | L52: =ABS(I52-K52) -> 6.72173428e-12 | M52: Minimize the criterion cell by changing Cell F53
E53: rd | F53: 0.02221110076
H55: Short rate tree (out 2 quarters)
B56: Price Tree for 9-month Zero
E58: 100
J59: =J64*I51 -> 0.03225884271
D60: =100/(1+$B$5*J59) -> 99.19998086
I61: =F33 -> 0.02704572193
C62: =0.5*(D60+D65)/(1+$B$5*I61) -> 98.60093624
E63: 100
H64: =C5 -> 0.0217 | J64: =J70*I51 -> 0.02676759993
B65: =0.5*(C62+C68)*EXP(-B5*H64) -> 98.18517004 | D65: =100/(1+$B$5*J64) -> 99.33525839
I67: =F34 -> 0.02241720711
C68: =0.5*(D65+D71)/(1+$B$5*I67) -> 98.8376078 | E68: 100
J70: =F53 -> 0.02221110076
D71: =100/(1+$B$5*J70) -> 99.44778879
E73: 100
C78: Price of the 4-Qtr Bill: | E78: =100*EXP(-B8*C8) -> 97.47736391 | L78: Criterion
H79: p: | I79: =EXP(2*D8*SQRT(B5)) -> 1.320090111 | L79: =ABS(E78-B97) -> 8.839151633e-12
E81: rd | F81: 0.01861820581
H83: Short rate tree (out 3 quarters)
B84: Price Tree for 1 - Year Zero
F88: 100
K89: =K93*I79 -> 0.04283004785
E90: =F88/(1+$B$5*K89) -> 98.94059242
J91: =J59 -> 0.03225884271
D92: =0.5*(E90+E94)/(1+$B$5*J91) -> 98.27543647 | F92: 100
I93: =I61 -> 0.02704572193 | K93: =K99*I79 -> 0.03244479108
C94: =(0.5*(D92+D97))/(1+B5*I93) -> 97.79266016 | E94: =F92/(1+$B$5*K93) -> 99.19540644
H96: =H64 -> 0.0217 | J96: =J64 -> 0.02676759993
B97: =(0.5*(C94+C100))*EXP(-B5*H96) -> 97.47736391 | D97: =0.5*(E94+E100)/(1+$B$5*J96) -> 98.6323204 | F97: 100
I99: =I67 -> 0.02241720711 | K99: =K104*$I$79 -> 0.02457770936
C100: =(0.5*(D97+D103))/(1+B5*I99) -> 98.22257106 | E100: =F97/(1+$B$5*K99) -> 99.38930961
J102: =J70 -> 0.02221110076
D103: =0.5*(E100+E105)/(1+$B$5*J102) -> 98.91375959 | F103: 100
K104: =F81 -> 0.01861820581
E105: =F103/(1+$B$5*K104) -> 99.5367013
F107: 100
C111: Price of the 5-Qtr Zero | E111: =100*EXP(-B9*C9) -> 96.7313633 | K111: Target | L111: Criterion
H112: p: | I112: =EXP(2*D9*SQRT(B5)) -> 1.352425977 | L112: =ABS(K113-I113) -> 6.96331881e-13
H113: Price Eqn: | I113: =B130 -> 96.7313633 | K113: =E111 -> 96.7313633
E114: rd | F114: 0.03037445294
B117: Price Tree for 5 - Quarter Zero | I117: Short rate tree (out 4 quarters)
G119: 100
F121: =0.5*(G119+G123)/(1+$B$5*M121) -> 97.52253531 | M121: =M125*I112 -> 0.1016160903
L122: =K89 -> 0.04283004785
E123: =0.5*(F121+F125)/(1+L122*$B$5) -> 96.80286459 | G123: 100
K124: =J91 -> 0.03225884271
D125: =0.5*(E123+E127)/(1+K124*$B$5) -> 96.42454907 | F125: =0.5*(G123+G127)/(1+$B$5*M125) -> 98.15622954 | M125: =M130*I112 -> 0.07513615677
J126: =I93 -> 0.02704572193 | L126: =K93 -> 0.03244479108
C127: =0.5*(D125+D130)/(1+$B$5*J126) -> 96.83851325 | E127: =0.5*(F125+F130)/(1+L126*$B$5) -> 97.60150574 | G127: 100
I129: =H96 -> 0.0217 | K129: =J96 -> 0.02676759993
B130: =0.5*(C127+C133)*EXP(-$B$5*I129) -> 96.7313633 | D130: =0.5*(E127+E133)/(1+-$B$5*K129) -> 98.56201118 | F130: =0.5*(G127+G133)/(1+$B$5*M130) -> 98.63011217 | M130: =M136*I112 -> 0.05555657613
J132: =I99 -> 0.02241720711 | L132: =K99 -> 0.02457770936
C133: =0.5*(D130+D136)/(1+$B$5*J132) -> 97.67660066 | E133: =0.5*(F130+F136)/(1+L132*$B$5) -> 98.20338238 | G133: 100
K135: =J102 -> 0.02221110076
D136: =0.5*(E133+E138)/(1+$B$5*K135) -> 97.88600845 | F136: =0.5*(G133+G138)/(1+$B$5*M136) -> 98.98345969 | M136: =M140*$I$112 -> 0.0410791992
L137: =K104 -> 0.01861820581
E138: =0.5*(F136+F140)/(1+L137*$B$5) -> 98.65571251 | G138: 100
F140: =0.5*(G138+G142)/(1+$B$5*M140) -> 99.24636152 | M140: =F114 -> 0.03037445294
G142: 100
J145: Short rate tree (out 5 quarters)
B146: Price Tree for 6 - Quarter Zero
C147: Price | E147: =100*EXP(-B10*C10) -> 95.95229933 | I147: Model | K147: Target | L147: Criterion
H148: p: | I148: =EXP(2*D10*SQRT(B5)) -> 1.346623031 | L148: =ABS(K149-I149) -> 1.902833446e-11
H149: 0 Price: | I149: =B164 -> 95.95229933 | K149: =E147 -> 95.95229933
E150: rd | F150: 0.002469338716
H151: 100
G153: =0.5*(H151+H154)/(1+$B$5*O153) -> 99.72737527 | O153: =O157*$I$148 -> 0.01093480027
H154: 100
F155: =0.5*(G153+G157)/(1+$B$5*N155) -> 97.2908132 | N155: =M121 -> 0.1016160903
E157: =0.5*(F155+F159)/(1+$B$5*M157) -> 96.60249753 | G157: =0.5*(H154+H158)/(1+$B$5*O157) -> 99.79740716 | M157: =L122 -> 0.04283004785 | O157: =O161*$I$148 -> 0.008120164306
H158: 100 | L158: =K124 -> 0.03225884271
D159: =0.5*(E157+E161)/(1+$B$5*L158) -> 96.25070669 | F159: =0.5*(G157+G161)/(1+$B$5*N159) -> 97.98292665 | N159: =M125 -> 0.07513615677
K160: =J126 -> 0.02704572193
C161: =0.5*(D159+D164)/(1+$B$5*K160) -> 96.03668039 | E161: =0.5*(F159+F164)/(1+$B$5*M161) -> 97.45138405 | G161: =0.5*(H158+H163)/(1+$B$5*O161) -> 99.84947641 | M161: =L126 -> 0.03244479108 | O161: =O167*$I$148 -> 0.006030020369
H163: 100 | J163: =I129 -> 0.0217 | L163: =K129 -> 0.02676759993
B164: =0.5*(C161+C167)*EXP(-$B$5*J163) -> 95.95229933 | D164: =0.5*(E161+E167)/(1+$B$5*L163) -> 97.12134477 | F164: =0.5*(G161+G167)/(1+$B$5*N164) -> 98.50073634 | N164: =M130 -> 0.05555657613
K166: =J132 -> 0.02241720711
C167: =0.5*(D164+D170)/(1+$B$5*K166) -> 96.91182976 | E167: =0.5*(F164+F170)/(1+$B$5*M167) -> 98.09115815 | G167: =0.5*(H163+H169)/(1+$B$5*O167) -> 99.88817811 | M167: =L132 -> 0.02457770936 | O167: =O172*$I$148 -> 0.004477882994
H169: 100 | L169: =K135 -> 0.02221110076
D170: =0.5*(E167+E172)/(1+$B$5*L169) -> 97.78856103 | F170: =0.5*(G167+G172)/(1+$B$5*N170) -> 98.88700795 | N170: =M136 -> 0.0410791992
E172: =0.5*(F170+F174)/(1+$B$5*M172) -> 98.5719597 | G172: =0.5*(H169+H173)/(1+$B$5*O172) -> 99.91693734 | M172: =L137 -> 0.01861820581 | O172: =O176*$I$148 -> 0.003325268387
H173: 100
F174: =0.5*(G172+G176)/(1+$B$5*N174) -> 99.17452797 | N174: =M140 -> 0.03037445294
G176: =0.5*(H173+H177)/(1+$B$5*O176) -> 99.93830462 | O176: =F150 -> 0.002469338716
H177: 100
H187: p: | I187: =EXP(2*D11*SQRT(B5)) -> 1.390968128 | K187: Model | L187: Bogie | M187: Criterion
A188: Price for 7-quarter 0: | C188: =100*EXP(-B11*C11) -> 95.28478898 | D188: Vol on the forward rate: | F188: =D11 -> 0.33 | H188: rd | I188: 0.009633896138 | J188: 0 Price | K188: =B197 -> 95.28478898 | L188: =C188 -> 95.28478898 | M188: =ABS(L188-K188) -> 4.263256415e-14
I190: 100
H191: =0.5*(I190+I192)/(1+Q195/4) -> 98.28551162
G192: =0.5*(H191+H193)/(1+P196/4) -> 98.25487894 | I192: 100
F193: =0.5*(G192+G194)/(1+O197/4) -> 96.05404083 | H193: =0.5*(I192+I194)/(1+Q197/4) -> 98.76144499
E194: =0.5*(F193+F195)/(1+N198/4) -> 95.54599128 | G194: =0.5*(H193+H195)/(1+P198/4) -> 98.73352077 | I194: 100
D195: =0.5*(E194+E196)/(1+M199/4) -> 95.34530567 | F195: =0.5*(G194+G196)/(1+O199/4) -> 97.08406141 | H195: =0.5*(I194+I196)/(1+Q199/4) -> 99.10646275 | Q195: =Q197*$I$187 -> 0.06977583368
C196: =0.5*(D195+D197)/(1+L200/4) -> 95.2597596 | E196: =0.5*(F195+F197)/(1+N200/4) -> 96.68248467 | G196: =0.5*(H195+H197)/(1+P200/4) -> 99.08186368 | I196: 100 | P196: =O153 -> 0.01093480027
B197: =0.5*(C196+C198)*EXP(-K201/4) -> 95.28478898 | D197: =0.5*(E196+E198)/(1+M201/4) -> 96.46239801 | F197: =0.5*(G196+G198)/(1+O201/4) -> 97.84932944 | H197: =0.5*(I196+I198)/(1+Q201/4) -> 99.35599744 | O197: =N155 -> 0.1016160903 | Q197: =Q199*$I$187 -> 0.05016350285
C198: =0.5*(D197+D199)/(1+L202/4) -> 96.3464677 | E198: =0.5*(F197+F199)/(1+N202/4) -> 97.53334478 | G198: =0.5*(H197+H199)/(1+P202/4) -> 99.33488207 | I198: 100 | N198: =M157 -> 0.04283004785 | P198: =O157 -> 0.008120164306
D199: =0.5*(E198+E200)/(1+M203/4) -> 97.31044674 | F199: =0.5*(G198+G200)/(1+O203/4) -> 98.41593322 | H199: =0.5*(I198+I200)/(1+Q203/4) -> 99.53617168 | M199: =L158 -> 0.03225884271 | O199: =N159 -> 0.07513615677 | Q199: =Q201*$I$187 -> 0.03606373275
E200: =0.5*(F199+F201)/(1+N204/4) -> 98.16823477 | G200: =0.5*(H199+H201)/(1+P204/4) -> 99.51840824 | I200: 100 | L200: =K160 -> 0.02704572193 | N200: =M161 -> 0.03244479108 | P200: =O161 -> 0.006030020369
F201: =0.5*(G200+G202)/(1+O205/4) -> 98.83439452 | H201: =0.5*(I200+I202)/(1+Q205/4) -> 99.66610751 | K201: =J163 -> 0.0217 | M201: =L163 -> 0.02676759993 | O201: =N164 -> 0.05555657613 | Q201: =Q203*$I$187 -> 0.02592707339
G202: =0.5*(H201+H203)/(1+P206/4) -> 99.65140113 | I202: 100 | L202: =K166 -> 0.02241720711 | N202: =M167 -> 0.02457770936 | P202: =O167 -> 0.004477882994
H203: =0.5*(I202+I204)/(1+Q207/4) -> 99.75973128 | M203: =L169 -> 0.02221110076 | O203: =N170 -> 0.0410791992 | Q203: =Q205*$I$187 -> 0.0186395884
I204: 100 | N204: =M172 -> 0.01861820581 | P204: =O172 -> 0.003325268387
O205: =N174 -> 0.03037445294 | Q205: =Q207*$I$187 -> 0.01340044248
P206: =O176 -> 0.002469338716
Q207: =I188 -> 0.009633896138
A208: Price for 8-quarter 0: | C208: =100*EXP(-B12*C12) -> 94.62958699
H209: rd | I209: 0.0005056442975 | K209: Model P | L209: Target | M209: Criterion
H210: p: | I210: 2.556743292 | K210: =B222 -> 94.62958699 | L210: =C208 -> 94.62958699 | M210: =ABS(K210-L210) -> 1.195132882e-11
J214: 100
I215: =0.5*(J214+J216)/(1+S216/4) -> 91.71949798
H216: =0.5*(I215+I217)/(1+R217/4) -> 92.54015748 | J216: 100 | S216: =S218*$I$210 -> 0.361122867
G217: =0.5*(H216+H218)/(1+Q218/4) -> 94.21479465 | I217: =0.5*(J216+J218)/(1+S218/4) -> 96.58935029 | R217: =Q195 -> 0.06977583368
F218: =0.5*(G217+G219)/(1+P219/4) -> 93.28155436 | H218: =0.5*(I217+I219)/(1+R219/4) -> 96.4045418 | J218: 100 | Q218: =P196 -> 0.01093480027 | S218: =S220*$I$210 -> 0.1412433028
E219: =0.5*(F218+F220)/(1+O220/4) -> 93.6157167 | G219: =0.5*(H218+H220)/(1+Q220/4) -> 97.08776749 | I219: =0.5*(J218+J220)/(1+S220/4) -> 98.63772807 | P219: =O197 -> 0.1016160903 | R219: =Q197 -> 0.05016350285
D220: =0.5*(E219+E221)/(1+N221/4) -> 93.99916642 | F220: =0.5*(G219+G221)/(1+P221/4) -> 95.95466186 | H220: =0.5*(I219+I221)/(1+R221/4) -> 98.16517749 | J220: 100 | O220: =N198 -> 0.04283004785 | Q220: =P198 -> 0.008120164306 | S220: =S222*$I$210 -> 0.0552434432
C221: =0.5*(D220+D222)/(1+M222/4) -> 94.32079161 | E221: =0.5*(F220+F222)/(1+O222/4) -> 95.8987683 | G221: =0.5*(H220+H222)/(1+Q222/4) -> 98.4263885 | I221: =0.5*(J220+J222)/(1+S222/4) -> 99.46272827 | N221: =M199 -> 0.03225884271 | P221: =O199 -> 0.07513615677 | R221: =Q199 -> 0.03606373275
B222: =0.5*(C221+C223)*EXP(-B5*L223) -> 94.62958699 | D222: =0.5*(E221+E223)/(1+N223/4) -> 95.91790374 | F222: =0.5*(G221+G223)/(1+P223/4) -> 97.39858249 | H222: =0.5*(I221+I223)/(1+R223/4) -> 98.98435607 | J222: 100 | M222: =L200 -> 0.02704572193 | O222: =N200 -> 0.03244479108 | Q222: =P200 -> 0.006030020369 | S222: =S224*$I$210 -> 0.02160695733
C223: =0.5*(D222+D224)/(1+M224/4) -> 95.96790343 | E223: =0.5*(F222+F224)/(1+O224/4) -> 97.22078523 | G223: =0.5*(H222+H224)/(1+Q224/4) -> 99.07634235 | I223: =0.5*(J222+J224)/(1+S224/4) -> 99.78917121 | L223: =K201 -> 0.0217 | N223: =M201 -> 0.02676759993 | P223: =O201 -> 0.05555657613 | R223: =Q201 -> 0.02592707339
D224: =0.5*(E223+E225)/(1+N225/4) -> 97.09356931 | F224: =0.5*(G223+G225)/(1+P225/4) -> 98.23772007 | H224: =0.5*(I223+I225)/(1+R225/4) -> 99.39015477 | J224: 100 | M224: =L202 -> 0.02241720711 | O224: =N202 -> 0.02457770936 | Q224: =P202 -> 0.004477882994 | S224: =S226*$I$210 -> 0.008450968621
E225: =0.5*(F224+F226)/(1+O226/4) -> 98.04463091 | G225: =0.5*(H224+H226)/(1+Q226/4) -> 99.41686122 | I225: =0.5*(J224+J226)/(1+S226/4) -> 99.91743411 | N225: =M203 -> 0.02221110076 | P225: =O203 -> 0.0410791992 | R225: =Q203 -> 0.0186395884
F226: =0.5*(G225+G227)/(1+P227/4) -> 98.76424932 | H226: =0.5*(I225+I227)/(1+R227/4) -> 99.60886154 | J226: 100 | O226: =N204 -> 0.01861820581 | Q226: =P204 -> 0.003325268387 | S226: =S228*$I$210 -> 0.003305364543
G227: =0.5*(H226+H228)/(1+Q228/4) -> 99.61159243 | I227: =0.5*(J226+J228)/(1+S228/4) -> 99.96769038 | P227: =O205 -> 0.03037445294 | R227: =Q205 -> 0.01340044248
H228: =0.5*(I227+I229)/(1+R229/4) -> 99.73731071 | J228: 100 | Q228: =P206 -> 0.002469338716 | S228: =S230*$I$210 -> 0.001292802666
I229: =0.5*(J228+J230)/(1+S230/4) -> 99.98736049 | R229: =Q207 -> 0.009633896138
J230: 100 | S230: =I209 -> 0.0005056442975
A233: Price for 9-quarter 0: | C233: =100*EXP(-B13*C13) -> 94.02119034
H234: rd | I234: 0.001007668002 | K234: Model | L234: Target | M234: Criterion
I235: Pricing Equation: | K235: =B247 -> 94.02119034 | L235: =C233 -> 94.02119034 | M235: =ABS(L235-K235) -> 1.41142209e-10
I236: p: | J236: =EXP(D13*SQRT(B5)*2) -> 1.63231622
J239: 100
I240: =0.5*(J239+J241)/(1+T240/4) -> 98.74624569 | T240: =T242*$J$236 -> 0.05078691549
H241: =0.5*(I240+I242)*EXP(-S241/4) -> 90.44073907 | J241: 100 | S241: =S216 -> 0.361122867
G242: =0.5*(H241+H243)*EXP(-R242/4) -> 91.57252706 | I242: =0.5*(J241+J243)*EXP(-T242/4) -> 99.22518219 | R242: =R217 -> 0.06977583368 | T242: =T244*$J$236 -> 0.03111340491
F243: =0.5*(G242+G244)*EXP(-Q243/4) -> 93.469743 | H243: =0.5*(I242+I244)*EXP(-S243/4) -> 95.92711726 | J243: 100 | Q243: =Q218 -> 0.01093480027 | S243: =S218 -> 0.1412433028
E244: =0.5*(F243+F245)*EXP(-P244/4) -> 92.68475004 | G244: =0.5*(H243+H245)*EXP(-R244/4) -> 95.87869457 | I244: =0.5*(J243+J245)*EXP(-T244/4) -> 99.52461124 | P244: =P219 -> 0.1016160903 | R244: =R219 -> 0.05016350285 | T244: =T246*$J$236 -> 0.01906089306
D245: =0.5*(E244+E246)*EXP(-O245/4) -> 93.14430763 | F245: =0.5*(G244+G246)*EXP(-Q245/4) -> 96.66921323 | H245: =0.5*(I244+I246)*EXP(-S245/4) -> 98.25021988 | J245: 100 | O245: =O220 -> 0.04283004785 | Q245: =Q220 -> 0.008120164306 | S245: =S220 -> 0.0552434432
C246: =0.5*(D245+D247)*EXP(-N246/4) -> 93.6244136 | E246: =0.5*(F245+F247)*EXP(-P246/4) -> 95.60927008 | G246: =0.5*(H245+H247)*EXP(-R246/4) -> 97.8526155 | I246: =0.5*(J245+J247)*EXP(-T246/4) -> 99.70849555 | N246: =N221 -> 0.03225884271 | P246: =P221 -> 0.07513615677 | R246: =R221 -> 0.03606373275 | T246: =T248*$J$236 -> 0.01167720618
B247: =0.5*(C246+C248)*EXP(-M247/4) -> 94.02119034 | D247: =0.5*(E246+E248)*EXP(-O247/4) -> 95.62073287 | F247: =0.5*(G246+G248)*EXP(-Q247/4) -> 98.17513048 | H247: =0.5*(I246+I248)*EXP(-S247/4) -> 99.22745451 | J247: 100 | M247: =M222 -> 0.02704572193 | O247: =O222 -> 0.03244479108 | Q247: =Q222 -> 0.006030020369 | S247: =S222 -> 0.02160695733
C248: =0.5*(D247+D249)*EXP(-N248/4) -> 95.69371063 | E248: =0.5*(F247+F249)*EXP(-P248/4) -> 97.1897011 | G248: =0.5*(H247+H249)*EXP(-R248/4) -> 98.7938677 | I248: =0.5*(J247+J249)*EXP(-T248/4) -> 99.82131571 | L248: =L223 -> 0.0217 | N248: =N223 -> 0.02676759993 | P248: =P223 -> 0.05555657613 | R248: =R223 -> 0.02592707339 | T248: =T250*$J$236 -> 0.007153764719
D249: =0.5*(E248+E250)*EXP(-O249/4) -> 97.05172875 | F249: =0.5*(G248+G250)*EXP(-Q249/4) -> 98.92287104 | H249: =0.5*(I248+I250)*EXP(-S249/4) -> 99.64515847 | J249: 100 | M249: =M224 -> 0.02241720711 | O249: =O224 -> 0.02457770936 | Q249: =Q224 -> 0.004477882994 | S249: =S224 -> 0.008450968621
E250: =0.5*(F249+F251)*EXP(-P250/4) -> 98.1100826 | G250: =0.5*(H249+H251)*EXP(-R250/4) -> 99.27348091 | I250: =0.5*(J249+J251)*EXP(-T250/4) -> 99.89049537 | N250: =N225 -> 0.02221110076 | P250: =P225 -> 0.0410791992 | R250: =R225 -> 0.0186395884 | T250: =T252*$J$236 -> 0.004382585084
F251: =0.5*(G250+G252)*EXP(-Q251/4) -> 99.32281905 | H251: =0.5*(I250+I252)*EXP(-S251/4) -> 99.82917081 | J251: 100 | O251: =O226 -> 0.01861820581 | Q251: =Q226 -> 0.003325268387 | S251: =S226 -> 0.003305364543
G252: =0.5*(H251+H253)*EXP(-R252/4) -> 99.53736335 | I252: =0.5*(J251+J253)*EXP(-T252/4) -> 99.93290034 | P252: =P227 -> 0.03037445294 | R252: =R227 -> 0.01340044248 | T252: =T254*$J$236 -> 0.002684887298
H253: =0.5*(I252+I254)*EXP(-S253/4) -> 99.91359663 | J253: 100 | Q253: =Q228 -> 0.002469338716 | S253: =S228 -> 0.001292802666
I254: =0.5*(J253+J255)*EXP(-T254/4) -> 99.95888763 | R254: =R229 -> 0.009633896138 | T254: =T256*$J$236 -> 0.001644832824
J255: 100 | S255: =S230 -> 0.0005056442975
I256: =0.5*(J255+J257)*EXP(-T256/4) -> 99.97481147 | T256: =I234 -> 0.001007668002
J257: 100
A261: Price for 10-quarter 0: | C261: =100*EXP(-B14*C14) -> 93.44940679
H262: rd | I262: 0.002555186397 | J262: p: | K262: =EXP(2*SQRT(B5)*D14) -> 1.733253018 | L262: =D14 -> 0.55
J263: 0 Price: | K263: =A277 -> 93.44940679 | L263: =C261 -> 93.44940679 | M263: =ABS(K263-L263) -> 1.374814929e-09
K267: 100
J268: =0.5*(K267+K269)/(1+V269/4) -> 91.72779594
I269: =0.5*(J268+J270)/(1+U270/4) -> 92.22014131 | K269: 100 | V269: =V271*$K$262 -> 0.3607283475
H270: =0.5*(I269+I271)/(1+T271/4) -> 86.00930536 | J270: =0.5*(K269+K271)/(1+V271/4) -> 95.05427494 | U270: =T240 -> 0.05078691549
G271: =0.5*(H270+H272)/(1+S272/4) -> 87.96746387 | I271: =0.5*(J270+J272)/(1+U272/4) -> 95.32843289 | K271: 100 | T271: =S241 -> 0.361122867 | V271: =V273*$K$262 -> 0.2081221517
F272: =0.5*(G271+G273)/(1+R273/4) -> 90.51463638 | H272: =0.5*(I271+I273)/(1+T273/4) -> 92.99462394 | J272: =0.5*(K271+K273)/(1+V273/4) -> 97.08558689 | S272: =R242 -> 0.06977583368 | U272: =T242 -> 0.03111340491
E273: =0.5*(F272+F274)/(1+Q274/4) -> 90.36707934 | G273: =0.5*(H272+H274)/(1+S274/4) -> 93.55668862 | I273: =0.5*(J272+J274)/(1+U274/4) -> 97.22824891 | K273: 100 | R273: =Q243 -> 0.01093480027 | T273: =S243 -> 0.1412433028 | V273: =V275*$K$262 -> 0.1200760359
... 158 more rows

Sheet Bkgrd
A1: The BDT model assumes that the short-rate process follows a mean-reverting geometric Brownian motion.
B2: The ability to fit the yield curve exactly by allowing the long-run mean to vary as we move through time.
B3: The volatility fits the a caplet corresponding to that period.
A6: The volatility equation is derived as follows:
D9: This interest rate in the up-state is | G9: rU
E12: The 2 rates this period are centered at
D15: This interest rate in the up-state is | G15: rD
A19: In BDT, our volatility equation solves for sigma, as a function of Dt, r0, rU, and rD.
A21: Here's the derivation:
E23: Note that whatever this centering value, | I23: is, it cancels in this expression.
A27: Now recall that exponents are additive when the arguments are multiplied (subtractive when divided):
A36: Thus (taking the log of both sides:)
A42: Isolating sigma:
F45: Note that everything in this derivation is true, independent of the probability of going up or down.
F46: This is an important point that suggests that the volatility and nodes are the same whether we are in the real world
F47: or the equivalent risk-neutral world.
F48: Another way of noting this is by seeing that we do not have to know the expected interest rate next period to work
F49: with the nodes / volatilities.
F50: This is the same reason that under the Black-Scholes model, the implied volatility is the volatility of the stock in
F51: the real world.
A55: So what is | C55: This depends on the forward rate, but it also depends on the volatility, because of convexity. In particluar, the (geometric) mean of ru and rd is not the forward rate.
C56: Because of Jensen's inequality this mean will be less than the forward rate. The difference will be increasing in sigma.

Sheet Euro$ Futs
A1: Eurodollar futures prices are quoted as 100 minus 90-day Libor (expressed as a %ge) for spot settlement on the third Wednesday of the contract month.
A6: 3-mo Euro$ Price Tree
B8: =100-bdt!P338*100 -> 97.29542781 | G8: We start at the terminal date of the futures contract. Our final tree is already in terms of Libor.
A9: =0.5*(B8+B10) -> 97.52685355
B10: =100-bdt!P340*100 -> 97.75827929 | G10: Since a futures contract entails no cash outlay, the price today must be the expected price next period (in ERNW).
G11: (And since the price is a linear function of the rates, then we can simply work directly with the rates.)
G12: The 6-month Eurodollar futures rate (that is on a 3-month contract that matures in 3 months) is: | O12: =(100-A9)/100 -> 0.02473146452 | P12: And the 90-day Eurodollar forward in 3 months is: | U12: =bdt!Q6 -> 0.0247301338
G13: Note that the futures rate exceeds the forward rate. (The futures-forward effect.). There are 2 effects at play: Convesity and daily settlement (marking to market) on futures contracts.
A14: 6-mo Euro$ Futures Tree
C16: =100-bdt!Q337*100 -> 96.77411573
B17: =0.5*(C16+C18) -> 97.04867787
A18: =0.5*(B17+B19) -> 97.29987142 | C18: =100-bdt!Q339*100 -> 97.32324001
B19: =0.5*(C18+C20) -> 97.55106497
C20: =100-bdt!Q341*100 -> 97.77888992
A22: 9-mo Euro$ Futures Tree
D24: =100-bdt!R336*100 -> 95.71699522
C25: =0.5*(D24+D26) -> 96.23625805
B26: =0.5*(C25+C27) -> 96.69256652 | D26: =100-bdt!R338*100 -> 96.75552089
A27: =0.5*(B26+B28) -> 97.09355306 | C27: =0.5*(D26+D28) -> 97.14887498
B28: =0.5*(C27+C29) -> 97.49453961 | D28: =100-bdt!R340*100 -> 97.54222906
C29: =0.5*(D28+D30) -> 97.84020424
D30: =100-bdt!R342*100 -> 98.13817942
A34: 12-month Euro$ Futures Tree
E36: =100-bdt!S335 -> 99.89838391
D37: =0.5*(E36+E38) -> 99.91162388
C38: =0.5*(D37+D39) -> 99.92313876 | E38: =100-bdt!S337 -> 99.92486384
B39: =0.5*(C38+C40) -> 99.93315331 | D39: =0.5*(E38+E40) -> 99.93465363
A40: =0.5*(B39+B41) -> 99.94186304 | C40: =0.5*(D39+D41) -> 99.94316787 | E40: =100-bdt!S339 -> 99.94444342
B41: =0.5*(C40+C42) -> 99.95057276 | D41: =0.5*(E40+E42) -> 99.95168211
C42: =0.5*(D41+D43) -> 99.95797764 | E42: =100-bdt!S341 -> 99.9589208
D43: =0.5*(E42+E44) -> 99.96427317
E44: =100-bdt!S343 -> 99.96962555

Sheet Bloomberg Screens
A1: Here is the Bloomberg
A2: screen for a standard
A3: interest rate cap.
A35: This is the Cash-flow table for this cap (The 5 Tab on the cap screen.) | G35: Note that the caplet vol corresponds to the volatility of the forward rate. These can be used to calibrate the Black, Derman and Toy Model.
A37: Expiry | B37: Pay Date | C37: Days | D37: Notional | E37: Cap Strike | F37: Cap Vols | G37: Reset Rate | H37: Hedge Ratio | I37: Payment | J37: Discount | K37: Intrinsic PV | L37: Time PV | M37: PV
A38: 2014-05-22 | B38: 2014-08-26 | C38: 91 | D38: 10,000,000.00 | E38: 1.69423 | F38: 77.52 | G38: 0.2463 | H38: 0 | I38: 0 | J38: 0.998785 | K38: 0 | L38: 0 | M38: 0
A39: 2014-08-21 | B39: 2014-11-25 | C39: 91 | D39: 10,000,000.00 | E39: 1.69423 | F39: 77.52 | G39: 0.262 | H39: 0 | I39: 0.61 | J39: 0.998125 | K39: 0 | L39: 0.61 | M39: 0.61
A40: 2014-11-21 | B40: 2015-02-25 | C40: 92 | D40: 10,000,000.00 | E40: 1.69423 | F40: 77.52 | G40: 0.31194 | H40: 0.02 | I40: 20.7 | J40: 0.99733 | K40: 0 | L40: 20.64 | M40: 20.64
A41: 2015-02-23 | B41: 2015-05-26 | C41: 90 | D41: 10,000,000.00 | E41: 1.69423 | F41: 73.74 | G41: 0.38907 | H41: 0.05 | I41: 119.99 | J41: 0.996361 | K41: 0 | L41: 119.55 | M41: 119.55
A42: 2015-05-21 | B42: 2015-08-25 | C42: 91 | D42: 10,000,000.00 | E42: 1.69423 | F42: 73.66 | G42: 0.5188 | H42: 0.15 | I42: 603.12 | J42: 0.995057 | K42: 0 | L42: 600.14 | M42: 600.14
A43: 2015-08-21 | B43: 2015-11-25 | C43: 92 | D43: 10,000,000.00 | E43: 1.69423 | F43: 73.66 | G43: 0.69063 | H43: 0.29 | I43: 1,940.51 | J43: 0.993304 | K43: 0 | L43: 1927.52 | M43: 1,927.52
A44: 2015-11-23 | B44: 2016-02-25 | C44: 92 | D44: 10,000,000.00 | E44: 1.69423 | F44: 73.66 | G44: 0.90092 | H44: 0.43 | I44: 4,473.68 | J44: 0.991023 | K44: 0 | L44: 4433.52 | M44: 4,433.52
A45: 2016-02-23 | B45: 2016-05-25 | C45: 90 | D45: 10,000,000.00 | E45: 1.69423 | F45: 59.44 | G45: 1.14769 | H45: 0.48 | I45: 5,859.17 | J45: 0.988187 | K45: 0 | L45: 5789.96 | M45: 5,789.96
A46: 2016-05-23 | B46: 2016-08-25 | C46: 92 | D46: 10,000,000.00 | E46: 1.69423 | F46: 59.13 | G46: 1.40516 | H46: 0.58 | I46: 10,129.10 | J46: 0.984651 | K46: 0 | L46: 9973.64 | M46: 9,973.64
A47: 2016-08-23 | B47: 2016-11-25 | C47: 92 | D47: 10,000,000.00 | E47: 1.69423 | F47: 59.13 | G47: 1.65969 | H47: 0.66 | I47: 14,962.86 | J47: 0.980493 | K47: 0 | L47: 14670.98 | M47: 14,670.98
A48: 2016-11-23 | B48: 2017-02-27 | C48: 94 | D48: 10,000,000.00 | E48: 1.69423 | F48: 59.13 | G48: 1.9412 | H48: 0.71 | I48: 21,216.27 | J48: 0.975548 | K48: 6290.89 | L48: 14406.6 | M48: 20,697.50
A49: 2017-02-23 | B49: 2017-05-25 | C49: 87 | D49: 10,000,000.00 | E49: 1.69423 | F49: 49.86 | G49: 2.22389 | H49: 0.75 | I49: 22,937.92 | J49: 0.970349 | K49: 12420.63 | L49: 9837.15 | M49: 22,257.78
A50: 2017-05-23 | B50: 2017-08-25 | C50: 92 | D50: 10,000,000.00 | E50: 1.69423 | F50: 49.66 | G50: 2.43119 | H50: 0.77 | I50: 28,961.32 | J50: 0.964357 | K50: 18162.16 | L50: 9766.89 | M50: 27,929.05
A51: 2017-08-23 | B51: 2017-11-27 | C51: 94 | D51: 10,000,000.00 | E51: 1.69423 | F51: 49.66 | G51: 2.63771 | H51: 0.78 | I51: 34,588.06 | J51: 0.957761 | K51: 23594.71 | L51: 9532.36 | M51: 33,127.08
A52: 2017-11-23 | B52: 2018-02-26 | C52: 91 | D52: 10,000,000.00 | E52: 1.69423 | F52: 49.66 | G52: 2.83939 | H52: 0.79 | I52: 38,310.14 | J52: 0.950937 | K52: 27526.77 | L52: 8903.77 | M52: 36,430.54
A53: 2018-02-22 | B53: 2018-05-25 | C53: 88 | D53: 10,000,000.00 | E53: 1.69423 | F53: 41.65 | G53: 3.00442 | H53: 0.8 | I53: 38,401.49 | J53: 0.944015 | K53: 30233.87 | L53: 6017.72 | M53: 36,251.59
A54: 2018-05-23 | B54: 2018-08-28 | C54: 95 | D54: 10,000,000.00 | E54: 1.69423 | F54: 41.47 | G54: 3.18796 | H54: 0.8 | I54: 46,048.81 | J54: 0.93614 | K54: 36900.53 | L54: 6207.59 | M54: 43,108.11
A55: 2018-08-23 | B55: 2018-11-26 | C55: 90 | D55: 10,000,000.00 | E55: 1.69423 | F55: 41.47 | G55: 3.37416 | H55: 0.79 | I55: 48,140.85 | J55: 0.928314 | K55: 38987.46 | L55: 5702.37 | M55: 44,689.84
A56: 2018-11-22 | B56: 2019-02-25 | C56: 91 | D56: 10,000,000.00 | E56: 1.69423 | F56: 41.47 | G56: 3.54701 | H56: 0.79 | I56: 52,966.71 | J56: 0.920063 | K56: 43090.36 | L56: 5642.34 | M56: 48,732.70

Sheet Cap Valuation
A1: Valuing a Cap Using BDT | D1: Since we started with the caplet values, it is redundant (and circular thinking) to use the binomial Black, Derman, Toy tree to value the caplets.
A3: Consider a cap that caps 90-day Libor at 3% for 6 quarters.
A4: Cap rate: | B4: 0.03
A5: Notional Principal: | C5: 10,000,000
A6: Tenor: | C6: Quarterly | D6: 0.25
A7: Format: | C7: Set in advance, pay in arrears
A9: Remember that a 3-year cap with quarterly resets comprises 11 caplets. The first is set in 3 months, and pays in 6. The last is set in 2.75 years and pays in 3 years.
A11: 1st Caplet:
D12: Note that the cash flow occurs at the end of the tenor period.
B13: =MAX(0,bdt!P338-'Cap Valuation'!$B$4)*'Cap Valuation'!$C$5*'Cap Valuation'!$D$6/(1+bdt!P338*'Cap Valuation'!$D$6) -> 0 | D13: Each node has the value of the caplet in that node (at that point in time).
A14: =0.5*(B13+B15)/(1+'Cap Valuation'!O338*'Cap Valuation'!$D$6) -> 0
B15: =MAX(0,bdt!P340-'Cap Valuation'!$B$4)*'Cap Valuation'!$C$5*'Cap Valuation'!$D$6/(1+bdt!P340*'Cap Valuation'!$D$6) -> 0
A18: 2nd Caplet:
C19: =MAX(0,bdt!Q337-'Cap Valuation'!$B$4)*'Cap Valuation'!$C$5*'Cap Valuation'!$D$6/(1+bdt!Q337*'Cap Valuation'!$D$6) -> 5601.928851
B20: =0.5*(C19+C21)/(1+bdt!P338*'Cap Valuation'!$D$6) -> 2782.153091
A21: =0.5*(B20+B22)/(1+bdt!O339*'Cap Valuation'!$D$6) -> 1383.550388 | C21: =MAX(0,bdt!Q339-'Cap Valuation'!$B$4)*'Cap Valuation'!$C$5*'Cap Valuation'!$D$6/(1+bdt!Q339*'Cap Valuation'!$D$6) -> 0
B22: =0.5*(C21+C23)/(1+bdt!P340*'Cap Valuation'!$D$6) -> 0
C23: =MAX(0,bdt!Q341-'Cap Valuation'!$B$4)*'Cap Valuation'!$C$5*'Cap Valuation'!$D$6/(1+bdt!Q341*'Cap Valuation'!$D$6) -> 0
A25: 3rd Caplet
D26: =MAX(0,bdt!R336-'Cap Valuation'!$B$4)*'Cap Valuation'!$C$5*'Cap Valuation'!$D$6/(1+bdt!R336*'Cap Valuation'!$D$6) -> 31735.31337
C27: =0.5*(D26+D28)/(1+bdt!Q337*'Cap Valuation'!$D$6) -> 18747.86116
B28: =0.5*(C27+C29)/(1+bdt!P338*'Cap Valuation'!$D$6) -> 10806.48805 | D28: =MAX(0,bdt!R338-'Cap Valuation'!$B$4)*'Cap Valuation'!$C$5*'Cap Valuation'!$D$6/(1+bdt!R338*'Cap Valuation'!$D$6) -> 6062.801111
A29: =0.5*(B28+B30)/(1+bdt!O339*'Cap Valuation'!$D$6) -> 6118.577462 | C29: =0.5*(D28+D30)/(1+bdt!Q339*'Cap Valuation'!$D$6) -> 3011.249575
B30: =0.5*(C29+C31)/(1+bdt!P340*'Cap Valuation'!$D$6) -> 1497.233837 | D30: =MAX(0,bdt!R340-'Cap Valuation'!$B$4)*'Cap Valuation'!$C$5*'Cap Valuation'!$D$6/(1+bdt!R340*'Cap Valuation'!$D$6) -> 0
C31: =0.5*(D30+D32)/(1+bdt!Q341*'Cap Valuation'!$D$6) -> 0
D32: =MAX(0,bdt!R342-'Cap Valuation'!$B$4)*'Cap Valuation'!$C$5*'Cap Valuation'!$D$6/(1+bdt!R342*'Cap Valuation'!$D$6) -> 0
A34: 4th Caplet
E35: =MAX(0,bdt!S335-$B$4)*$C$5*$D$6/(1+bdt!S335*$D$6) -> 174,604.57
D36: =0.5*(E35+E37)/(1+bdt!R336*$D$6) -> 141,170.63
C37: =0.5*(D36+D38)/(1+bdt!Q337*$D$6) -> 112,770.33 | E37: =MAX(0,bdt!S337-$B$4)*$C$5*$D$6/(1+bdt!S337*$D$6) -> 110,759.87
B38: =0.5*(C37+C39)/(1+bdt!P338*$D$6) -> 88,352.14 | D38: =0.5*(E37+E39)/(1+bdt!R338*$D$6) -> 86,188.94
A39: =0.5*(B38+B40)/(1+bdt!O339*$D$6) -> 67,300.66 | C39: =0.5*(D38+D40)/(1+bdt!Q339*$D$6) -> 65,128.73 | E39: =MAX(0,bdt!S339-$B$4)*$C$5*$D$6/(1+bdt!S339*$D$6) -> 63,016.20
B40: =0.5*(C39+C41)/(1+bdt!P340*$D$6) -> 46,981.37 | D40: =0.5*(E39+E41)/(1+bdt!R340*$D$6) -> 44,940.19
C41: =0.5*(D40+D42)/(1+bdt!Q341*$D$6) -> 29,360.61 | E41: =MAX(0,bdt!S341-$B$4)*$C$5*$D$6/(1+bdt!S341*$D$6) -> 27,416.44
D42: =0.5*(E41+E43)/(1+bdt!R342*$D$6) -> 14,107.09
E43: =MAX(0,bdt!S343-$B$4)*$C$5*$D$6/(1+bdt!S343*$D$6) -> 929.08
A46: 5th Caplet
F47: =MAX(0,bdt!T334-$B$4)*$D$6*$C$5/(1+bdt!T334*$D$6) -> 0
E48: =0.5*(F47+F49)/(1+bdt!S335*$D$6) -> 0
D49: =0.5*(E48+E50)/(1+bdt!R336*$D$6) -> 0 | F49: =MAX(0,bdt!T336-$B$4)*$D$6*$C$5/(1+bdt!T336*$D$6) -> 0
C50: =0.5*(D49+D51)/(1+bdt!Q337*$D$6) -> 0 | E50: =0.5*(F49+F51)/(1+bdt!S337*$D$6) -> 0
B51: =0.5*(C50+C52)/(1+bdt!P338*$D$6) -> 0 | D51: =0.5*(E50+E52)/(1+bdt!R338*$D$6) -> 0 | F51: =MAX(0,bdt!T338-$B$4)*$D$6*$C$5/(1+bdt!T338*$D$6) -> 0
A52: =0.5*(B51+B53)/(1+bdt!O339*$D$6) -> 0 | C52: =0.5*(D51+D53)/(1+bdt!Q339*$D$6) -> 0 | E52: =0.5*(F51+F53)/(1+bdt!S339*$D$6) -> 0
B53: =0.5*(C52+C54)/(1+bdt!P340*$D$6) -> 0 | D53: =0.5*(E52+E54)/(1+bdt!R340*$D$6) -> 0 | F53: =MAX(0,bdt!T340-$B$4)*$D$6*$C$5/(1+bdt!T340*$D$6) -> 0
C54: =0.5*(D53+D55)/(1+bdt!Q341*$D$6) -> 0 | E54: =0.5*(F53+F55)/(1+bdt!S341*$D$6) -> 0
D55: =0.5*(E54+E56)/(1+bdt!R342*$D$6) -> 0 | F55: =MAX(0,bdt!T342-$B$4)*$D$6*$C$5/(1+bdt!T342*$D$6) -> 0
E56: =0.5*(F55+F57)/(1+bdt!S343*$D$6) -> 0
F57: =MAX(0,bdt!T344-$B$4)*$D$6*$C$5/(1+bdt!T344*$D$6) -> 0
A59: 6th Caplet
G61: =MAX(0,bdt!U333-$B$4)*$C$5*$D$6/(1+$D$6*bdt!U333) -> 97,734.70
F62: =0.5*(G61+G63)/(1+bdt!T334*$D$6) -> 73,558.47
E63: =0.5*(F62+F64)/(1+bdt!S335*$D$6) -> 51,636.71 | G63: =MAX(0,bdt!U335-$B$4)*$C$5*$D$6/(1+$D$6*bdt!U335) -> 49,784.42
D64: =0.5*(E63+E65)/(1+bdt!R336*$D$6) -> 35,217.41 | F64: =0.5*(G63+G65)/(1+bdt!T336*$D$6) -> 32,338.50
C65: =0.5*(D64+D66)/(1+bdt!Q337*$D$6) -> 23,187.74 | E65: =0.5*(F64+F66)/(1+bdt!S337*$D$6) -> 19,552.29 | G65: =MAX(0,bdt!U337-$B$4)*$C$5*$D$6/(1+$D$6*bdt!U337) -> 15,023.88
B66: =0.5*(C65+C67)/(1+bdt!P338*$D$6) -> 14,814.05 | D66: =0.5*(E65+E67)/(1+bdt!R338*$D$6) -> 11,532.08 | F66: =0.5*(G65+G67)/(1+bdt!T338*$D$6) -> 7,500.63
A67: =0.5*(B66+B68)/(1+bdt!O339*$D$6) -> 9,234.94 | C67: =0.5*(D66+D68)/(1+bdt!Q339*$D$6) -> 6,640.69 | E67: =0.5*(F66+F68)/(1+bdt!S339*$D$6) -> 3,698.94 | G67: =MAX(0,bdt!U339-$B$4)*$C$5*$D$6/(1+$D$6*bdt!U339) -> 0
B68: =0.5*(C67+C69)/(1+bdt!P340*$D$6) -> 3,756.30 | D68: =0.5*(E67+E69)/(1+bdt!R340*$D$6) -> 1,838.18 | F68: =0.5*(G67+G69)/(1+bdt!T340*$D$6) -> 0
C69: =0.5*(D68+D70)/(1+bdt!Q341*$D$6) -> 914.01 | E69: =0.5*(F68+F70)/(1+bdt!S341*$D$6) -> 0 | G69: =MAX(0,bdt!U341-$B$4)*$C$5*$D$6/(1+$D$6*bdt!U341) -> 0
D70: =0.5*(E69+E71)/(1+bdt!R342*$D$6) -> 0 | F70: =0.5*(G69+G71)/(1+bdt!T342*$D$6) -> 0
E71: =0.5*(F70+F72)/(1+bdt!S343*$D$6) -> 0 | G71: =MAX(0,bdt!U343-$B$4)*$C$5*$D$6/(1+$D$6*bdt!U343) -> 0
F72: =0.5*(G71+G73)/(1+bdt!T344*$D$6) -> 0
G73: =MAX(0,bdt!U345-$B$4)*$C$5*$D$6/(1+$D$6*bdt!U345) -> 0
A76: 7th Caplet
H77: =MAX(0,bdt!V332-$B$4)*$C$5*$D$6/(1+bdt!V332*$D$6) -> 759,260.58
G78: =0.5*(H77+H79)/(1+bdt!U333*$D$6) -> 505,130.30
F79: =0.5*(G78+G80)/(1+bdt!T334*$D$6) -> 333,347.33 | H79: =MAX(0,bdt!V334-$B$4)*$C$5*$D$6/(1+bdt!V334*$D$6) -> 268,622.96
E80: =0.5*(F79+F81)/(1+bdt!S335*$D$6) -> 209,803.75 | G80: =0.5*(H79+H81)/(1+bdt!U335*$D$6) -> 163,386.91
D81: =0.5*(E80+E82)/(1+bdt!R336*$D$6) -> 131,060.77 | F81: =0.5*(G80+G82)/(1+bdt!T336*$D$6) -> 96,919.88 | H81: =MAX(0,bdt!V336-$B$4)*$C$5*$D$6/(1+bdt!V336*$D$6) -> 62,248.90
C82: =0.5*(D81+D83)/(1+bdt!Q337*$D$6) -> 80,435.28 | E82: =0.5*(F81+F83)/(1+bdt!S337*$D$6) -> 55,124.45 | G82: =0.5*(H81+H83)/(1+bdt!U337*$D$6) -> 30,846.34
B83: =0.5*(C82+C84)/(1+bdt!P338*$D$6) -> 48,551.70 | D83: =0.5*(E82+E84)/(1+bdt!R338*$D$6) -> 31,107.16 | F83: =0.5*(G82+G84)/(1+bdt!T338*$D$6) -> 15,399.95 | H83: =MAX(0,bdt!V338-$B$4)*$C$5*$D$6/(1+bdt!V338*$D$6) -> 0
A84: =0.5*(B83+B85)/(1+bdt!O339*$D$6) -> 28,892.25 | C84: =0.5*(D83+D85)/(1+bdt!Q339*$D$6) -> 17,324.67 | E84: =0.5*(F83+F85)/(1+bdt!S339*$D$6) -> 7,594.50 | G84: =0.5*(H83+H85)/(1+bdt!U339*$D$6) -> 0
B85: =0.5*(C84+C86)/(1+bdt!P340*$D$6) -> 9,547.14 | D85: =0.5*(E84+E86)/(1+bdt!R340*$D$6) -> 3,774.06 | F85: =0.5*(G84+G86)/(1+bdt!T340*$D$6) -> 0 | H85: =MAX(0,bdt!V340-$B$4)*$C$5*$D$6/(1+bdt!V340*$D$6) -> 0
C86: =0.5*(D85+D87)/(1+bdt!Q341*$D$6) -> 1,876.61 | E86: =0.5*(F85+F87)/(1+bdt!S341*$D$6) -> 0 | G86: =0.5*(H85+H87)/(1+bdt!U341*$D$6) -> 0
D87: =0.5*(E86+E88)/(1+bdt!R342*$D$6) -> 0 | F87: =0.5*(G86+G88)/(1+bdt!T342*$D$6) -> 0 | H87: =MAX(0,bdt!V342-$B$4)*$C$5*$D$6/(1+bdt!V342*$D$6) -> 0
E88: =0.5*(F87+F89)/(1+bdt!S343*$D$6) -> 0 | G88: =0.5*(H87+H89)/(1+bdt!U343*$D$6) -> 0
F89: =0.5*(G88+G90)/(1+bdt!T344*$D$6) -> 0 | H89: =MAX(0,bdt!V344-$B$4)*$C$5*$D$6/(1+bdt!V344*$D$6) -> 0
G90: =0.5*(H89+H91)/(1+bdt!U345*$D$6) -> 0
H91: =MAX(0,bdt!V346-$B$4)*$C$5*$D$6/(1+bdt!V346*$D$6) -> 0
A95: 8th Caplet
I96: =MAX(0,bdt!W331-$B$4)*$C$5*$D$6/(1+bdt!W331*$D$6) -> 51,315.75
H97: =0.5*(I96+I98)/(1+bdt!V332*$D$6) -> 24,799.93
G98: =0.5*(H97+H99)/(1+bdt!U333*$D$6) -> 12,842.89 | I98: =MAX(0,bdt!W333-$B$4)*$C$5*$D$6/(1+bdt!W333*$D$6) -> 2,762.03
F99: =0.5*(G98+G100)/(1+bdt!T334*$D$6) -> 6,732.39 | H99: =0.5*(I98+I100)/(1+bdt!V334*$D$6) -> 1,333.91
E100: =0.5*(F99+F101)/(1+bdt!S335*$D$6) -> 3,443.07 | G100: =0.5*(H99+H101)/(1+bdt!U335*$D$6) -> 658.70 | I100: =MAX(0,bdt!W335-$B$4)*$C$5*$D$6/(1+bdt!W335*$D$6) -> 0
D101: =0.5*(E100+E102)/(1+bdt!R336*$D$6) -> 1,783.10 | F101: =0.5*(G100+G102)/(1+bdt!T336*$D$6) -> 328.68 | H101: =0.5*(I100+I102)/(1+bdt!V336*$D$6) -> 0
C102: =0.5*(D101+D103)/(1+bdt!Q337*$D$6) -> 924.10 | E102: =0.5*(F101+F103)/(1+bdt!S337*$D$6) -> 161.31 | G102: =0.5*(H101+H103)/(1+bdt!U337*$D$6) -> 0 | I102: =MAX(0,bdt!W337-$B$4)*$C$5*$D$6/(1+bdt!W337*$D$6) -> 0
B103: =0.5*(C102+C104)/(1+bdt!P338*$D$6) -> 478.68 | D103: =0.5*(E102+E104)/(1+bdt!R338*$D$6) -> 80.01 | F103: =0.5*(G102+G104)/(1+bdt!T338*$D$6) -> 0 | H103: =0.5*(I102+I104)/(1+bdt!V338*$D$6) -> 0
A104: =0.5*(B103+B105)/(1+bdt!O339*$D$6) -> 247.87 | C104: =0.5*(D103+D105)/(1+bdt!Q339*$D$6) -> 39.74 | E104: =0.5*(F103+F105)/(1+bdt!S339*$D$6) -> 0 | G104: =0.5*(H103+H105)/(1+bdt!U339*$D$6) -> 0 | I104: =MAX(0,bdt!W339-$B$4)*$C$5*$D$6/(1+bdt!W339*$D$6) -> 0
B105: =0.5*(C104+C106)/(1+bdt!P340*$D$6) -> 19.76 | D105: =0.5*(E104+E106)/(1+bdt!R340*$D$6) -> 0 | F105: =0.5*(G104+G106)/(1+bdt!T340*$D$6) -> 0 | H105: =0.5*(I104+I106)/(1+bdt!V340*$D$6) -> 0
C106: =0.5*(D105+D107)/(1+bdt!Q341*$D$6) -> 0 | E106: =0.5*(F105+F107)/(1+bdt!S341*$D$6) -> 0 | G106: =0.5*(H105+H107)/(1+bdt!U341*$D$6) -> 0 | I106: =MAX(0,bdt!W341-$B$4)*$C$5*$D$6/(1+bdt!W341*$D$6) -> 0
D107: =0.5*(E106+E108)/(1+bdt!R342*$D$6) -> 0 | F107: =0.5*(G106+G108)/(1+bdt!T342*$D$6) -> 0 | H107: =0.5*(I106+I108)/(1+bdt!V342*$D$6) -> 0
E108: =0.5*(F107+F109)/(1+bdt!S343*$D$6) -> 0 | G108: =0.5*(H107+H109)/(1+bdt!U343*$D$6) -> 0 | I108: =MAX(0,bdt!W343-$B$4)*$C$5*$D$6/(1+bdt!W343*$D$6) -> 0
F109: =0.5*(G108+G110)/(1+bdt!T344*$D$6) -> 0 | H109: =0.5*(I108+I110)/(1+bdt!V344*$D$6) -> 0
G110: =0.5*(H109+H111)/(1+bdt!U345*$D$6) -> 0 | I110: =MAX(0,bdt!W345-$B$4)*$C$5*$D$6/(1+bdt!W345*$D$6) -> 0
H111: =0.5*(I110+I112)/(1+bdt!V346*$D$6) -> 0
I112: =MAX(0,bdt!W347-$B$4)*$C$5*$D$6/(1+bdt!W347*$D$6) -> 0
A118: 9th Caplet
J119: =MAX(0,bdt!X330-$B$4)*$C$5*$D$6/(1+bdt!X330*$D$6) -> 758,424.56
I120: =0.5*(J119+J121)/(1+bdt!W331*$D$6) -> 583,445.33
H121: =0.5*(I120+I122)/(1+bdt!V332*$D$6) -> 413,619.42 | J121: =MAX(0,bdt!X332-$B$4)*$C$5*$D$6/(1+bdt!X332*$D$6) -> 423,281.80
G122: =0.5*(H121+H123)/(1+bdt!U333*$D$6) -> 316,069.69 | I122: =0.5*(J121+J123)/(1+bdt!W333*$D$6) -> 318,477.23
F123: =0.5*(G122+G124)/(1+bdt!T334*$D$6) -> 240,508.10 | H123: =0.5*(I122+I124)/(1+bdt!V334*$D$6) -> 229,546.97 | J123: =MAX(0,bdt!X334-$B$4)*$C$5*$D$6/(1+bdt!X334*$D$6) -> 218,627.12
E124: =0.5*(F123+F125)/(1+bdt!S335*$D$6) -> 175,008.39 | G124: =0.5*(H123+H125)/(1+bdt!U335*$D$6) -> 166,261.46 | I124: =0.5*(J123+J125)/(1+bdt!W335*$D$6) -> 156,827.69
D125: =0.5*(E124+E126)/(1+bdt!R336*$D$6) -> 126,480.68 | F125: =0.5*(G124+G126)/(1+bdt!T336*$D$6) -> 118,400.52 | H125: =0.5*(I124+I126)/(1+bdt!V336*$D$6) -> 107,146.09 | J125: =MAX(0,bdt!X336-$B$4)*$C$5*$D$6/(1+bdt!X336*$D$6) -> 96,522.89
C126: =0.5*(D125+D127)/(1+bdt!Q337*$D$6) -> 89,611.57 | E126: =0.5*(F125+F127)/(1+bdt!S337*$D$6) -> 80,661.55 | G126: =0.5*(H125+H127)/(1+bdt!U337*$D$6) -> 71,020.28 | I126: =0.5*(J125+J127)/(1+bdt!W337*$D$6) -> 60,424.05
B127: =0.5*(C126+C128)/(1+bdt!P338*$D$6) -> 62,198.82 | D127: =0.5*(E126+E128)/(1+bdt!R338*$D$6) -> 54,187.85 | F127: =0.5*(G126+G128)/(1+bdt!T338*$D$6) -> 45,952.88 | H127: =0.5*(I126+I128)/(1+bdt!V338*$D$6) -> 36,175.11 | J127: =MAX(0,bdt!X338-$B$4)*$C$5*$D$6/(1+bdt!X338*$D$6) -> 24,678.01
A128: =0.5*(B127+B129)/(1+bdt!O339*$D$6) -> 42,354.21 | C128: =0.5*(D127+D129)/(1+bdt!Q339*$D$6) -> 35,627.16 | E128: =0.5*(F127+F129)/(1+bdt!S339*$D$6) -> 28,593.21 | G128: =0.5*(H127+H129)/(1+bdt!U339*$D$6) -> 21,024.03 | I128: =0.5*(J127+J129)/(1+bdt!W339*$D$6) -> 12,316.98
B129: =0.5*(C128+C130)/(1+bdt!P340*$D$6) -> 22,970.40 | D129: =0.5*(E128+E130)/(1+bdt!R340*$D$6) -> 17,543.30 | F129: =0.5*(G128+G130)/(1+bdt!T340*$D$6) -> 12,027.80 | H129: =0.5*(I128+I130)/(1+bdt!V340*$D$6) -> 6,145.50 | J129: =MAX(0,bdt!X340-$B$4)*$C$5*$D$6/(1+bdt!X340*$D$6) -> 0
C130: =0.5*(D129+D131)/(1+bdt!Q341*$D$6) -> 10,571.11 | E130: =0.5*(F129+F131)/(1+bdt!S341*$D$6) -> 6,708.99 | G130: =0.5*(H129+H131)/(1+bdt!U341*$D$6) -> 3,058.50 | I130: =0.5*(J129+J131)/(1+bdt!W341*$D$6) -> 0
D131: =0.5*(E130+E132)/(1+bdt!R342*$D$6) -> 3,716.31 | F131: =0.5*(G130+G132)/(1+bdt!T342*$D$6) -> 1,527.98 | H131: =0.5*(I130+I132)/(1+bdt!V342*$D$6) -> 0 | J131: =MAX(0,bdt!X342-$B$4)*$C$5*$D$6/(1+bdt!X342*$D$6) -> 0
E132: =0.5*(F131+F133)/(1+bdt!S343*$D$6) -> 758.23 | G132: =0.5*(H131+H133)/(1+bdt!U343*$D$6) -> 0 | I132: =0.5*(J131+J133)/(1+bdt!W343*$D$6) -> 0
F133: =0.5*(G132+G134)/(1+bdt!T344*$D$6) -> 0 | H133: =0.5*(I132+I134)/(1+bdt!V344*$D$6) -> 0 | J133: =MAX(0,bdt!X344-$B$4)*$C$5*$D$6/(1+bdt!X344*$D$6) -> 0
G134: =0.5*(H133+H135)/(1+bdt!U345*$D$6) -> 0 | I134: =0.5*(J133+J135)/(1+bdt!W345*$D$6) -> 0
H135: =0.5*(I134+I136)/(1+bdt!V346*$D$6) -> 0 | J135: =MAX(0,bdt!X346-$B$4)*$C$5*$D$6/(1+bdt!X346*$D$6) -> 0
I136: =0.5*(J135+J137)/(1+bdt!W347*$D$6) -> 0
J137: =MAX(0,bdt!X348-$B$4)*$C$5*$D$6/(1+bdt!X348*$D$6) -> 0
A140: 10th Caplet
K141: =MAX(0,bdt!Y329-$B$4)*$C$5*$D$6/(1+bdt!Y329*$D$6) -> 719,093.43
J142: =0.5*(K141+K143)/(1+bdt!X330*$D$6) -> 498,731.68
I143: =0.5*(J142+J144)/(1+bdt!W331*$D$6) -> 372,192.57 | K143: =MAX(0,bdt!Y331-$B$4)*$C$5*$D$6/(1+bdt!Y331*$D$6) -> 368,323.26
H144: =0.5*(I143+I145)/(1+bdt!V332*$D$6) -> 253,676.76 | J144: =0.5*(K143+K145)/(1+bdt!X332*$D$6) -> 255,104.71
G145: =0.5*(H144+H146)/(1+bdt!U333*$D$6) -> 183,895.55 | I145: =0.5*(J144+J146)/(1+bdt!W333*$D$6) -> 180,965.18 | K145: =MAX(0,bdt!Y333-$B$4)*$C$5*$D$6/(1+bdt!Y333*$D$6) -> 168,432.64
F146: =0.5*(G145+G147)/(1+bdt!T334*$D$6) -> 131,415.71 | H146: =0.5*(I145+I147)/(1+bdt!V334*$D$6) -> 120,530.08 | J146: =0.5*(K145+K147)/(1+bdt!X334*$D$6) -> 109,640.87
E147: =0.5*(F146+F148)/(1+bdt!S335*$D$6) -> 89,221.05 | G147: =0.5*(H146+H148)/(1+bdt!U335*$D$6) -> 79,654.38 | I147: =0.5*(J146+J148)/(1+bdt!W335*$D$6) -> 68,607.00 | K147: =MAX(0,bdt!Y335-$B$4)*$C$5*$D$6/(1+bdt!Y335*$D$6) -> 57,431.73
D148: =0.5*(E147+E149)/(1+bdt!R336*$D$6) -> 59,947.11 | F148: =0.5*(G147+G149)/(1+bdt!T336*$D$6) -> 51,559.54 | H148: =0.5*(I147+I149)/(1+bdt!V336*$D$6) -> 40,776.55 | J148: =0.5*(K147+K149)/(1+bdt!X336*$D$6) -> 28,226.99
C149: =0.5*(D148+D150)/(1+bdt!Q337*$D$6) -> 39,450.42 | E149: =0.5*(F148+F150)/(1+bdt!S337*$D$6) -> 31,956.94 | G149: =0.5*(H148+H150)/(1+bdt!U337*$D$6) -> 23,674.03 | I149: =0.5*(J148+J150)/(1+bdt!W337*$D$6) -> 14,072.41 | K149: =MAX(0,bdt!Y337-$B$4)*$C$5*$D$6/(1+bdt!Y337*$D$6) -> 0
B150: =0.5*(C149+C151)/(1+bdt!P338*$D$6) -> 25,454.74 | D150: =0.5*(E149+E151)/(1+bdt!R338*$D$6) -> 19,590.03 | F150: =0.5*(G149+G151)/(1+bdt!T338*$D$6) -> 13,554.91 | H150: =0.5*(I149+I151)/(1+bdt!V338*$D$6) -> 6,998.40 | J150: =0.5*(K149+K151)/(1+bdt!X338*$D$6) -> 0
A151: =0.5*(B150+B152)/(1+bdt!O339*$D$6) -> 16,142.84 | C151: =0.5*(D150+D152)/(1+bdt!Q339*$D$6) -> 11,803.28 | E151: =0.5*(F150+F152)/(1+bdt!S339*$D$6) -> 7,540.92 | G151: =0.5*(H150+H152)/(1+bdt!U339*$D$6) -> 3,476.67 | I151: =0.5*(J150+J152)/(1+bdt!W339*$D$6) -> 0 | K151: =MAX(0,bdt!Y339-$B$4)*$C$5*$D$6/(1+bdt!Y339*$D$6) -> 0
B152: =0.5*(C151+C153)/(1+bdt!P340*$D$6) -> 7,006.56 | D152: =0.5*(E151+E153)/(1+bdt!R340*$D$6) -> 4,174.49 | F152: =0.5*(G151+G153)/(1+bdt!T340*$D$6) -> 1,736.39 | H152: =0.5*(I151+I153)/(1+bdt!V340*$D$6) -> 0 | J152: =0.5*(K151+K153)/(1+bdt!X340*$D$6) -> 0
C153: =0.5*(D152+D154)/(1+bdt!Q341*$D$6) -> 2,288.39 | E153: =0.5*(F152+F154)/(1+bdt!S341*$D$6) -> 859.37 | G153: =0.5*(H152+H154)/(1+bdt!U341*$D$6) -> 0 | I153: =0.5*(J152+J154)/(1+bdt!W341*$D$6) -> 0 | K153: =MAX(0,bdt!Y341-$B$4)*$C$5*$D$6/(1+bdt!Y341*$D$6) -> 0
D154: =0.5*(E153+E155)/(1+bdt!R342*$D$6) -> 427.69 | F154: =0.5*(G153+G155)/(1+bdt!T342*$D$6) -> 0 | H154: =0.5*(I153+I155)/(1+bdt!V342*$D$6) -> 0 | J154: =0.5*(K153+K155)/(1+bdt!X342*$D$6) -> 0
E155: =0.5*(F154+F156)/(1+bdt!S343*$D$6) -> 0 | G155: =0.5*(H154+H156)/(1+bdt!U343*$D$6) -> 0 | I155: =0.5*(J154+J156)/(1+bdt!W343*$D$6) -> 0 | K155: =MAX(0,bdt!Y343-$B$4)*$C$5*$D$6/(1+bdt!Y343*$D$6) -> 0
F156: =0.5*(G155+G157)/(1+bdt!T344*$D$6) -> 0 | H156: =0.5*(I155+I157)/(1+bdt!V344*$D$6) -> 0 | J156: =0.5*(K155+K157)/(1+bdt!X344*$D$6) -> 0
G157: =0.5*(H156+H158)/(1+bdt!U345*$D$6) -> 0 | I157: =0.5*(J156+J158)/(1+bdt!W345*$D$6) -> 0 | K157: =MAX(0,bdt!Y345-$B$4)*$C$5*$D$6/(1+bdt!Y345*$D$6) -> 0
H158: =0.5*(I157+I159)/(1+bdt!V346*$D$6) -> 0 | J158: =0.5*(K157+K159)/(1+bdt!X346*$D$6) -> 0
I159: =0.5*(J158+J160)/(1+bdt!W347*$D$6) -> 0 | K159: =MAX(0,bdt!Y347-$B$4)*$C$5*$D$6/(1+bdt!Y347*$D$6) -> 0
J160: =0.5*(K159+K161)/(1+bdt!X348*$D$6) -> 0
K161: =MAX(0,bdt!Y349-$B$4)*$C$5*$D$6/(1+bdt!Y349*$D$6) -> 0
A164: 11th caplet:
L165: =MAX(0,bdt!Z328-$B$4)*$D$6*$C$5/(1+bdt!Z328*$D$6) -> 1,138,376.10
K166: =0.5*(L165+L167)/(1+bdt!Y329*$D$6) -> 785,219.95
J167: =0.5*(K166+K168)/(1+bdt!X330*$D$6) -> 540,011.42 | L167: =MAX(0,bdt!Z330-$B$4)*$D$6*$C$5/(1+bdt!Z330*$D$6) -> 566,433.86
I168: =0.5*(J167+J169)/(1+bdt!W331*$D$6) -> 398,178.28 | K168: =0.5*(L167+L169)/(1+bdt!Y331*$D$6) -> 392,201.60
H169: =0.5*(I168+I170)/(1+bdt!V332*$D$6) -> 267,247.87 | J169: =0.5*(K168+K170)/(1+bdt!X332*$D$6) -> 266,456.27 | L169: =MAX(0,bdt!Z332-$B$4)*$D$6*$C$5/(1+bdt!Z332*$D$6) -> 254,073.55
G170: =0.5*(H169+H171)/(1+bdt!U333*$D$6) -> 190,686.52 | I170: =0.5*(J169+J171)/(1+bdt!W333*$D$6) -> 184,572.11 | K170: =0.5*(L169+L171)/(1+bdt!Y333*$D$6) -> 168,438.67
F171: =0.5*(G170+G172)/(1+bdt!T334*$D$6) -> 134,479.87 | H171: =0.5*(I170+I172)/(1+bdt!V334*$D$6) -> 120,777.83 | J171: =0.5*(K170+K172)/(1+bdt!X334*$D$6) -> 105,559.29 | L171: =MAX(0,bdt!Z334-$B$4)*$D$6*$C$5/(1+bdt!Z334*$D$6) -> 91,144.97
E172: =0.5*(F171+F173)/(1+bdt!S335*$D$6) -> 90,427.09 | G172: =0.5*(H171+H173)/(1+bdt!U335*$D$6) -> 79,008.47 | I172: =0.5*(J171+J173)/(1+bdt!W335*$D$6) -> 65,513.08 | K172: =0.5*(L171+L173)/(1+bdt!Y335*$D$6) -> 49,017.49
D173: =0.5*(E172+E174)/(1+bdt!R336*$D$6) -> 60,393.57 | F173: =0.5*(G172+G174)/(1+bdt!T336*$D$6) -> 50,968.73 | H173: =0.5*(I172+I174)/(1+bdt!V336*$D$6) -> 39,220.79 | J173: =0.5*(K172+K174)/(1+bdt!X336*$D$6) -> 26,091.24 | L173: =MAX(0,bdt!Z336-$B$4)*$D$6*$C$5/(1+bdt!Z336*$D$6) -> 8,195.82
C174: =0.5*(D173+D175)/(1+bdt!Q337*$D$6) -> 39,638.19 | E174: =0.5*(F173+F175)/(1+bdt!S337*$D$6) -> 31,653.39 | G174: =0.5*(H173+H175)/(1+bdt!U337*$D$6) -> 23,135.92 | I174: =0.5*(J173+J175)/(1+bdt!W337*$D$6) -> 14,011.84 | K174: =0.5*(L173+L175)/(1+bdt!Y337*$D$6) -> 4,068.75
B175: =0.5*(C174+C176)/(1+bdt!P338*$D$6) -> 25,581.43 | D175: =0.5*(E174+E176)/(1+bdt!R338*$D$6) -> 19,522.14 | F175: =0.5*(G174+G176)/(1+bdt!T338*$D$6) -> 13,527.20 | H175: =0.5*(I174+I176)/(1+bdt!V338*$D$6) -> 7,468.24 | J175: =0.5*(K174+K176)/(1+bdt!X338*$D$6) -> 2,014.25 | L175: =MAX(0,bdt!Z338-$B$4)*$D$6*$C$5/(1+bdt!Z338*$D$6) -> 0
A176: =0.5*(B175+B177)/(1+bdt!O339*$D$6) -> 16,266.14 | C176: =0.5*(D175+D177)/(1+bdt!Q339*$D$6) -> 11,870.61 | E176: =0.5*(F175+F177)/(1+bdt!S339*$D$6) -> 7,707.60 | G176: =0.5*(H175+H177)/(1+bdt!U339*$D$6) -> 3,959.26 | I176: =0.5*(J175+J177)/(1+bdt!W339*$D$6) -> 1,005.33 | K176: =0.5*(L175+L177)/(1+bdt!Y339*$D$6) -> 0
B177: =0.5*(C176+C178)/(1+bdt!P340*$D$6) -> 7,127.82 | D177: =0.5*(E176+E178)/(1+bdt!R340*$D$6) -> 4,377.94 | F177: =0.5*(G176+G178)/(1+bdt!T340*$D$6) -> 2,102.10 | H177: =0.5*(I176+I178)/(1+bdt!V340*$D$6) -> 501.60 | J177: =0.5*(K176+K178)/(1+bdt!X340*$D$6) -> 0 | L177: =MAX(0,bdt!Z340-$B$4)*$D$6*$C$5/(1+bdt!Z340*$D$6) -> 0
C178: =0.5*(D177+D179)/(1+bdt!Q341*$D$6) -> 2,464.93 | E178: =0.5*(F177+F179)/(1+bdt!S341*$D$6) -> 1,102.09 | G178: =0.5*(H177+H179)/(1+bdt!U341*$D$6) -> 249.64 | I178: =0.5*(J177+J179)/(1+bdt!W341*$D$6) -> 0 | K178: =0.5*(L177+L179)/(1+bdt!Y341*$D$6) -> 0
D179: =0.5*(E178+E180)/(1+bdt!R342*$D$6) -> 579.29 | F179: =0.5*(G178+G180)/(1+bdt!T342*$D$6) -> 124.72 | H179: =0.5*(I178+I180)/(1+bdt!V342*$D$6) -> 0 | J179: =0.5*(K178+K180)/(1+bdt!X342*$D$6) -> 0 | L179: =MAX(0,bdt!Z342-$B$4)*$D$6*$C$5/(1+bdt!Z342*$D$6) -> 0
E180: =0.5*(F179+F181)/(1+bdt!S343*$D$6) -> 61.89 | G180: =0.5*(H179+H181)/(1+bdt!U343*$D$6) -> 0 | I180: =0.5*(J179+J181)/(1+bdt!W343*$D$6) -> 0 | K180: =0.5*(L179+L181)/(1+bdt!Y343*$D$6) -> 0
F181: =0.5*(G180+G182)/(1+bdt!T344*$D$6) -> 0 | H181: =0.5*(I180+I182)/(1+bdt!V344*$D$6) -> 0 | J181: =0.5*(K180+K182)/(1+bdt!X344*$D$6) -> 0 | L181: =MAX(0,bdt!Z344-$B$4)*$D$6*$C$5/(1+bdt!Z344*$D$6) -> 0
G182: =0.5*(H181+H183)/(1+bdt!U345*$D$6) -> 0 | I182: =0.5*(J181+J183)/(1+bdt!W345*$D$6) -> 0 | K182: =0.5*(L181+L183)/(1+bdt!Y345*$D$6) -> 0
H183: =0.5*(I182+I184)/(1+bdt!V346*$D$6) -> 0 | J183: =0.5*(K182+K184)/(1+bdt!X346*$D$6) -> 0 | L183: =MAX(0,bdt!Z346-$B$4)*$D$6*$C$5/(1+bdt!Z346*$D$6) -> 0
I184: =0.5*(J183+J185)/(1+bdt!W347*$D$6) -> 0 | K184: =0.5*(L183+L185)/(1+bdt!Y347*$D$6) -> 0
J185: =0.5*(K184+K186)/(1+bdt!X348*$D$6) -> 0 | L185: =MAX(0,bdt!Z348-$B$4)*$D$6*$C$5/(1+bdt!Z348*$D$6) -> 0
K186: =0.5*(L185+L187)/(1+bdt!Y349*$D$6) -> 0
L187: =MAX(0,bdt!Z350-$B$4)*$D$6*$C$5/(1+bdt!Z350*$D$6) -> 0
A193: So the value of the cap is: | C193: =A14+A21+A29+A39+A52+A67+A84+A104+A128+A151+A176 -> 187,941.04
